fUST/lending_fUST_20250211
["ID","MTS","AMOUNT","RATE_DAILY","PERIOD"]
[352624719,1739205042227,-500.0,0.00011232,2]
[352624721,1739205042240,-500.0,0.00011232,2]
[352624723,1739205042251,-500.0,0.00011232,2]
[352624725,1739205042262,-500.0,0.00011232,2]
[352624727,1739205042272,-500.0,0.00011232,2]
[352624730,1739205042284,-1169.66,0.00011232,2]
[352624732,1739205042295,-500.0,0.00011232,2]
[352624734,1739205042306,-500.0,0.00011232,2]
[352624736,1739205042318,-500.0,0.00011232,2]
[352624738,1739205042329,-500.0,0.00011369,2]
[352624741,1739205042341,-500.0,0.00011369,2]
[352624743,1739205042352,-500.0,0.00011369,2]
[352624745,1739205042363,-500.0,0.00011369,2]
[352624747,1739205042374,-491.74,0.00011369,2]
[352624750,1739205042386,-500.0,0.00011369,2]
[352624752,1739205042396,-690.16,0.00011369,2]
[352624754,1739205042407,-611.4,0.00011369,2]
[352624756,1739205042418,-500.0,0.00011369,2]
[352624758,1739205042429,-500.0,0.00011369,2]
[352624760,1739205042440,-500.0,0.00011369,2]
[352624763,1739205042451,-703.0,0.00011369,2]
[352624765,1739205042462,-500.0,0.00011369,2]
[352624767,1739205042473,-500.0,0.00011369,2]
[352624769,1739205042484,-562.94,0.00011369,2]
[352624771,1739205042496,-395.82129603,0.00011369,2]
[352624774,1739205042507,-500.0,0.00011369,2]
[352624776,1739205042518,-699.19,0.00011369,2]
[352624778,1739205042529,-500.0,0.00011369,2]
[352624780,1739205042539,-500.0,0.00011369,2]
[352624782,1739205042550,-500.0,0.00011369,2]
[352624785,1739205042561,-500.0,0.00011369,2]
[352624787,1739205042572,-378.23495491,0.00011369,2]
[352624789,1739205042583,-500.0,0.00011369,2]
[352624791,1739205042594,-500.0,0.00011369,2]
[352624793,1739205042606,-500.0,0.00011369,2]
[352624796,1739205042618,-500.0,0.00011369,2]
[352624798,1739205042630,-500.0,0.00011369,2]
[352624800,1739205042640,-500.0,0.00011369,2]
[352624802,1739205042649,-500.0,0.00011369,2]
[352624804,1739205042659,-500.0,0.00011369,2]
[352624806,1739205042668,-500.0,0.00011369,2]
[352624808,1739205042677,-500.0,0.00011369,2]
[352624810,1739205042687,-441.5,0.00011369,2]
[352624812,1739205042697,-500.0,0.00011369,2]
[352624814,1739205042711,-500.0,0.00011369,2]
[352624816,1739205042720,-599.71,0.00011369,2]
[352624818,1739205042729,-500.0,0.00011369,2]
[352624834,1739205042741,-500.0,0.00011369,2]
[352624837,1739205042887,-500.0,0.00011369,2]
[352624839,1739205042898,-12526.65,0.00011369,2]
[352624841,1739205042908,-500.0,0.00011369,2]
[352624843,1739205042918,-500.0,0.00011369,2]
[352624845,1739205042928,-500.0,0.00011369,2]
[352624847,1739205042937,-1489.16,0.00011369,2]
[352624849,1739205042947,-500.0,0.00011369,2]
[352624851,1739205042957,-531.04,0.00011369,2]
[352624853,1739205042966,-673.17,0.00011369,2]
[352624855,1739205042975,-500.0,0.00011369,2]
[352624857,1739205042984,-683.54,0.00011369,2]
[352624859,1739205042995,-500.0,0.00011369,2]
[352624861,1739205043004,-625.96,0.00011369,2]
[352624863,1739205043014,-500.0,0.00011369,2]
[352624865,1739205043024,-445.12929551,0.00011369,2]
[352624867,1739205043033,-500.0,0.00011369,2]
[352624871,1739205043043,-500.0,0.00011369,2]
[352624875,1739205043052,-500.0,0.00011369,2]
[352624879,1739205043062,-5371.01,0.00011369,2]
[352624883,1739205043071,-1641.74,0.00011369,2]
[352624887,1739205043080,-500.0,0.00011369,2]
[352624891,1739205043090,-500.0,0.00011369,2]
[352624895,1739205043099,-500.0,0.00011369,2]
[352624898,1739205043108,-500.0,0.00011369,2]
[352624901,1739205043117,-500.0,0.00011369,2]
[352624904,1739205043127,-506.41,0.00011369,2]
[352624907,1739205043136,-500.0,0.00011369,2]
[352624910,1739205043145,-500.0,0.00011369,2]
[352624913,1739205043155,-500.0,0.00011369,2]
[352624916,1739205043164,-500.0,0.00011369,2]
[352624919,1739205043174,-500.0,0.00011369,2]
[352624922,1739205043183,-500.0,0.00011369,2]
[352624925,1739205043192,-500.0,0.00011369,2]
[352624928,1739205043201,-500.0,0.00011369,2]
[352624931,1739205043211,-500.0,0.00011369,2]
[352624934,1739205043220,-618.63,0.00011369,2]
[352624937,1739205043229,-500.0,0.00011369,2]
[352624940,1739205043240,-500.0,0.00011369,2]
[352624943,1739205043249,-500.0,0.00011369,2]
[352624946,1739205043258,-897.18,0.00011369,2]
[352624949,1739205043267,-500.0,0.00011369,2]
[352624952,1739205043277,-500.0,0.00011369,2]
[352624955,1739205043287,-1311.74,0.00011369,2]
[352624957,1739205043296,-2733.22,0.00011369,2]
[352624959,1739205043307,-634.11,0.00011369,2]
[352624961,1739205043316,-500.0,0.00011369,2]
[352624963,1739205043324,-1409.56,0.00011369,2]
[352624965,1739205043333,-540.4,0.00011369,2]
[352624967,1739205043343,-511.16,0.00011369,2]
[352624969,1739205043352,-500.0,0.00011369,2]
[352624970,1739205043362,-500.0,0.00011369,2]
[352624971,1739205043371,-500.0,0.00011369,2]
[352624972,1739205043380,-500.0,0.00011369,2]
[352624973,1739205043389,-500.0,0.00011369,2]
[352624974,1739205043398,-500.0,0.00011369,2]
[352624975,1739205043407,-500.0,0.00011369,2]
[352624976,1739205043416,-500.0,0.00011369,2]
[352624977,1739205043425,-500.0,0.00011369,2]
[352624978,1739205043435,-500.0,0.00011369,2]
[352624979,1739205043444,-1538.23,0.00011369,2]
[352624980,1739205043453,-5570.95,0.00011369,2]
[352624982,1739205043462,-709.88,0.00011369,2]
[352624984,1739205043472,-500.0,0.00011369,2]
[352624986,1739205043481,-500.0,0.00011369,2]
[352624988,1739205043491,-500.0,0.00011369,2]
[352624990,1739205043500,-500.0,0.00011369,2]
[352624992,1739205043509,-500.0,0.00011369,2]
[352624994,1739205043518,-1169.66,0.00011369,2]
[352624996,1739205043527,-500.0,0.00011369,2]
[352624998,1739205043536,-500.0,0.00011369,2]
[352625000,1739205043545,-500.0,0.00011395,2]
[352625002,1739205043554,-500.0,0.00011395,2]
[352625003,1739205043564,-500.0,0.00011395,2]
[352625006,1739205043573,-151.0,0.000114,2]
[352625008,1739205043583,-1554.93106014,0.00011413,2]
[352625010,1739205043592,-500.0,0.00011414,2]
[352625012,1739205043601,-511.71832837,0.00011504,2]
[352625014,1739205043611,-371.85,0.00011506,2]
[352625016,1739205043622,-500.0,0.00011506,2]
[352625018,1739205043632,-500.0,0.00011506,2]
[352625020,1739205043642,-500.0,0.00011506,2]
[352625022,1739205043651,-690.16,0.00011506,2]
[352625024,1739205043660,-611.4,0.00011506,2]
[352625026,1739205043669,-500.0,0.00011506,2]
[352625028,1739205043678,-500.0,0.00011506,2]
[352625030,1739205043687,-703.0,0.00011506,2]
[352625032,1739205043698,-500.0,0.00011506,2]
[352625034,1739205043712,-562.94,0.00011506,2]
[352625035,1739205043722,-699.19,0.00011506,2]
[352625038,1739205043731,-500.0,0.00011506,2]
[352625039,1739205043740,-500.0,0.00011506,2]
[352625042,1739205043751,-562.87962465,0.00011506,2]
[352625044,1739205043761,-500.0,0.00011506,2]
[352625045,1739205043770,-500.0,0.00011506,2]
[352625048,1739205043781,-500.0,0.00011506,2]
[352625050,1739205043790,-500.0,0.00011506,2]
[352625052,1739205043799,-500.0,0.00011506,2]
[352625054,1739205043809,-500.0,0.00011506,2]
[352625056,1739205043819,-500.0,0.00011506,2]
[352625058,1739205043828,-500.0,0.00011506,2]
[352625060,1739205043837,-500.0,0.00011506,2]
[352625062,1739205043846,-599.71,0.00011506,2]
[352625064,1739205043855,-500.0,0.00011506,2]
[352625066,1739205043865,-12526.65,0.00011506,2]
[352625068,1739205043874,-500.0,0.00011506,2]
[352625070,1739205043883,-1489.16,0.00011506,2]
[352625072,1739205043892,-500.0,0.00011506,2]
[352625074,1739205043902,-531.04,0.00011506,2]
[352625076,1739205043913,-673.17,0.00011506,2]
[352625078,1739205043922,-683.54,0.00011506,2]
[352625080,1739205043932,-500.0,0.00011506,2]
[352625082,1739205043941,-625.96,0.00011506,2]
[352625084,1739205043951,-402.25,0.00011506,2]
[352625086,1739205043960,-500.0,0.00011506,2]
[352625088,1739205043969,-500.0,0.00011506,2]
[352625090,1739205043978,-500.0,0.00011506,2]
[352625092,1739205043987,-5371.01,0.00011506,2]
[352625094,1739205043997,-1641.74,0.00011506,2]
[352625096,1739205044007,-500.0,0.00011506,2]
[352625098,1739205044017,-500.0,0.00011506,2]
[352625100,1739205044027,-500.0,0.00011506,2]
[352625102,1739205044037,-500.0,0.00011506,2]
[352625104,1739205044047,-506.41,0.00011506,2]
[352625106,1739205044056,-500.0,0.00011506,2]
[352625108,1739205044066,-500.0,0.00011506,2]
[352625110,1739205044075,-500.0,0.00011506,2]
[352625112,1739205044085,-500.0,0.00011506,2]
[352625114,1739205044094,-500.0,0.00011506,2]
[352625116,1739205044103,-500.0,0.00011506,2]
[352625118,1739205044112,-618.63,0.00011506,2]
[352625120,1739205044122,-203.88748501,0.00011506,2]
[352625122,1739205044131,-500.0,0.00011506,2]
[352625124,1739205044141,-897.18,0.00011506,2]
[352625126,1739205044151,-562.02,0.00011506,2]
[352625128,1739205044160,-500.0,0.00011506,2]
[352625130,1739205044169,-1311.74,0.00011506,2]
[352625132,1739205044179,-2733.22,0.00011506,2]
[352625134,1739205044188,-634.11,0.00011506,2]
[352625136,1739205044197,-500.0,0.00011506,2]
[352625138,1739205044206,-1409.56,0.00011506,2]
[352625140,1739205044215,-540.4,0.00011506,2]
[352625142,1739205044224,-500.0,0.00011506,2]
[352625144,1739205044234,-500.0,0.00011506,2]
[352625146,1739205044243,-500.0,0.00011506,2]
[352625148,1739205044252,-500.0,0.00011506,2]
[352625150,1739205044262,-500.0,0.00011506,2]
[352625153,1739205044272,-500.0,0.00011506,2]
[352625154,1739205044282,-500.0,0.00011506,2]
[352625156,1739205044291,-1538.23,0.00011506,2]
[352625159,1739205044300,-5570.95,0.00011506,2]
[352625160,1739205044310,-709.88,0.00011506,2]
[352625162,1739205044319,-500.0,0.00011506,2]
[352625165,1739205044329,-500.0,0.00011506,2]
[352625167,1739205044339,-577.22,0.00011506,2]
[352625169,1739205044348,-500.0,0.00011506,2]
[352625171,1739205044358,-500.0,0.00011506,2]
[352625173,1739205044367,-1169.66,0.00011506,2]
[352625175,1739205044377,-500.0,0.00011506,2]
[352625177,1739205044386,-500.0,0.00011506,2]
[352625178,1739205044395,-151.0,0.000116,2]
[352625180,1739205044405,-500.0,0.00011611,2]
[352625182,1739205044414,-45619.26047126,0.00011614,2]
[352625184,1739205044424,-500.0,0.00011643,2]
[352625187,1739205044434,-690.16,0.00011643,2]
[352625189,1739205044443,-611.4,0.00011643,2]
[352625191,1739205044453,-500.0,0.00011643,2]
[352625193,1739205044462,-227.48,0.00011643,2]
[352625195,1739205044471,-703.0,0.00011643,2]
[352625197,1739205044481,-500.0,0.00011643,2]
[352625199,1739205044491,-562.94,0.00011643,2]
[352625201,1739205044501,-699.19,0.00011643,2]
[352625203,1739205044510,-500.0,0.00011643,2]
[352625204,1739205044519,-500.0,0.00011643,2]
[352625206,1739205044529,-500.0,0.00011643,2]
[352625208,1739205044538,-500.0,0.00011643,2]
[352625210,1739205044547,-500.0,0.00011643,2]
[352625212,1739205044557,-500.0,0.00011643,2]
[352625214,1739205044566,-500.0,0.00011643,2]
[352625216,1739205044575,-500.0,0.00011643,2]
[352625218,1739205044585,-513.76,0.00011643,2]
[352625221,1739205044595,-599.71,0.00011643,2]
[352625223,1739205044604,-12526.65,0.00011643,2]
[352625225,1739205044614,-500.0,0.00011643,2]
[352625227,1739205044623,-1489.16,0.00011643,2]
[352625229,1739205044632,-500.0,0.00011643,2]
[352625231,1739205044642,-531.04,0.00011643,2]
[352625233,1739205044651,-673.17,0.00011643,2]
[352625235,1739205044661,-683.54,0.00011643,2]
[352625237,1739205044670,-500.0,0.00011643,2]
[352625239,1739205044679,-442.95369119,0.00011643,2]
[352625241,1739205044688,-500.0,0.00011643,2]
[352625243,1739205044698,-5371.01,0.00011643,2]
[352625245,1739205044711,-1641.74,0.00011643,2]
[352625247,1739205044721,-500.0,0.00011643,2]
[352625249,1739205044730,-500.0,0.00011643,2]
[352625251,1739205044741,-500.0,0.00011643,2]
[352625253,1739205044751,-506.41,0.00011643,2]
[352625255,1739205044761,-500.0,0.00011643,2]
[352625257,1739205044770,-500.0,0.00011643,2]
[352625259,1739205044780,-500.0,0.00011643,2]
[352625261,1739205044789,-500.0,0.00011643,2]
[352625263,1739205044799,-618.63,0.00011643,2]
[352625265,1739205044808,-500.0,0.00011643,2]
[352625267,1739205044817,-897.18,0.00011643,2]
[352625269,1739205044827,-500.0,0.00011643,2]
[352625271,1739205044837,-1311.74,0.00011643,2]
[352625272,1739205044846,-2733.22,0.00011643,2]
[352625273,1739205044856,-634.11,0.00011643,2]
[352625274,1739205044868,-500.0,0.00011643,2]
[352625275,1739205044878,-1409.56,0.00011643,2]
[352625276,1739205044888,-540.4,0.00011643,2]
[352625277,1739205044899,-500.0,0.00011643,2]
[352625278,1739205044909,-500.0,0.00011643,2]
[352625279,1739205044919,-500.0,0.00011643,2]
[352625280,1739205044928,-500.0,0.00011643,2]
[352625282,1739205044939,-500.0,0.00011643,2]
[352625284,1739205044948,-500.0,0.00011643,2]
[352625286,1739205044957,-500.0,0.00011643,2]
[352625288,1739205044966,-1538.23,0.00011643,2]
[352625290,1739205044976,-5570.95,0.00011643,2]
[352625292,1739205044985,-709.88,0.00011643,2]
[352625294,1739205044995,-500.0,0.00011643,2]
[352625296,1739205045004,-500.0,0.00011643,2]
[352625298,1739205045014,-500.0,0.00011643,2]
[352625300,1739205045023,-500.0,0.00011643,2]
[352625302,1739205045032,-1169.66,0.00011643,2]
[352625304,1739205045042,-500.0,0.00011643,2]
[352625306,1739205045051,-500.0,0.00011643,2]
[352625308,1739205045060,-500.0,0.0001178,2]
[352625310,1739205045069,-690.16,0.0001178,2]
[352625312,1739205045079,-611.4,0.0001178,2]
[352625314,1739205045088,-500.0,0.0001178,2]
[352625316,1739205045097,-703.0,0.0001178,2]
[352625318,1739205045107,-539.06,0.0001178,2]
[352625320,1739205045116,-562.94,0.0001178,2]
[352625322,1739205045125,-699.19,0.0001178,2]
[352625324,1739205045135,-500.0,0.0001178,2]
[352625326,1739205045144,-500.0,0.0001178,2]
[352625328,1739205045153,-500.0,0.0001178,2]
[352625330,1739205045163,-500.0,0.0001178,2]
[352625333,1739205045172,-500.0,0.0001178,2]
[352625334,1739205045181,-500.0,0.0001178,2]
[352625336,1739205045191,-320.52,0.0001178,2]
[352625338,1739205045200,-599.71,0.0001178,2]
[352625341,1739205045210,-12526.65,0.0001178,2]
[352625343,1739205045220,-500.0,0.0001178,2]
[352625345,1739205045229,-1489.16,0.0001178,2]
[352625347,1739205045239,-500.0,0.0001178,2]
[352625349,1739205045249,-531.04,0.0001178,2]
[352625351,1739205045259,-673.17,0.0001178,2]
[352625353,1739205045269,-683.54,0.0001178,2]
[352625355,1739205045279,-500.0,0.0001178,2]
[352625357,1739205045288,-500.0,0.0001178,2]
[352625359,1739205045297,-1641.74,0.0001178,2]
[352625361,1739205045306,-5371.01,0.0001178,2]
[352625363,1739205045316,-500.0,0.0001178,2]
[352625365,1739205045325,-500.0,0.0001178,2]
[352625367,1739205045334,-500.0,0.0001178,2]
[352625369,1739205045347,-506.41,0.0001178,2]
[352625371,1739205045356,-500.0,0.0001178,2]
[352625373,1739205045365,-500.0,0.0001178,2]
[352625375,1739205045375,-500.0,0.0001178,2]
[352625377,1739205045384,-618.63,0.0001178,2]
[352625379,1739205045394,-457.3,0.0001178,2]
[352625380,1739205045404,-897.18,0.0001178,2]
[352625382,1739205045413,-1311.74,0.0001178,2]
[352625384,1739205045423,-2733.22,0.0001178,2]
[352625386,1739205045433,-634.11,0.0001178,2]
[352625388,1739205045442,-500.0,0.0001178,2]
[352625391,1739205045452,-1409.56,0.0001178,2]
[352625393,1739205045461,-540.4,0.0001178,2]
[352625395,1739205045471,-500.0,0.0001178,2]
[352625397,1739205045480,-500.0,0.0001178,2]
[352625399,1739205045489,-500.0,0.0001178,2]
[352625400,1739205045500,-500.0,0.0001178,2]
[352625402,1739205045509,-500.0,0.0001178,2]
[352625404,1739205045518,-500.0,0.0001178,2]
[352625406,1739205045527,-1538.23,0.0001178,2]
[352625408,1739205045537,-5570.95,0.0001178,2]
[352625410,1739205045546,-709.88,0.0001178,2]
[352625412,1739205045556,-500.0,0.0001178,2]
[352625414,1739205045565,-500.0,0.0001178,2]
[352625416,1739205045575,-500.0,0.0001178,2]
[352625422,1739205045584,-500.0,0.0001178,2]
[352625424,1739205045689,-1169.66,0.0001178,2]
[352625426,1739205045702,-500.0,0.0001178,2]
[352625427,1739205045713,-500.0,0.0001178,2]
[352625429,1739205045722,-1267.43579564,0.000118,2]
[352625430,1739205045732,-151.0,0.000119,2]
[352625432,1739205045745,-500.0,0.00011917,2]
[352625433,1739205045755,-690.16,0.00011917,2]
[352625435,1739205045765,-611.4,0.00011917,2]
[352625436,1739205045774,-500.0,0.00011917,2]
[352625438,1739205045786,-703.0,0.00011917,2]
[352625440,1739205045796,-562.94,0.00011917,2]
[352625441,1739205045805,-699.19,0.00011917,2]
[352625443,1739205045815,-152.36,0.00011917,2]
[352625445,1739205045824,-500.0,0.00011917,2]
[352625446,1739205045833,-500.0,0.00011917,2]
[352625448,1739205045842,-219.49418036,0.00011917,2]
[352625450,1739205045852,-500.0,0.00011917,2]
[352625451,1739205045861,-599.71,0.00011917,2]
[352625453,1739205045873,-12526.65,0.00011917,2]
[352625454,1739205045882,-500.0,0.00011917,2]
[352625456,1739205045892,-1489.16,0.00011917,2]
[352625458,1739205045901,-500.0,0.00011917,2]
[352625460,1739205045911,-531.04,0.00011917,2]
[352625462,1739205045921,-673.17,0.00011917,2]
[352625465,1739205045931,-683.54,0.00011917,2]
[352625466,1739205045940,-576.48,0.00011917,2]
[352625468,1739205045950,-500.0,0.00011917,2]
[352625470,1739205045959,-1641.74,0.00011917,2]
[352625471,1739205045969,-5371.01,0.00011917,2]
[352625473,1739205045978,-500.0,0.00011917,2]
[352625475,1739205045988,-500.0,0.00011917,2]
[352625476,1739205045999,-500.0,0.00011917,2]
[352625478,1739205046009,-506.41,0.00011917,2]
[352625480,1739205046018,-210.67165032,0.00011917,2]
[352625481,1739205046028,-281.96,0.00011917,2]
[352625483,1739205046038,-500.0,0.00011917,2]
[352625485,1739205046048,-618.63,0.00011917,2]
[352625486,1739205046058,-897.18,0.00011917,2]
[352625488,1739205046067,-1311.74,0.00011917,2]
[352625489,1739205046077,-2733.22,0.00011917,2]
[352625491,1739205046087,-634.11,0.00011917,2]
[352625493,1739205046097,-500.0,0.00011917,2]
[352625494,1739205046106,-1409.56,0.00011917,2]
[352625496,1739205046115,-540.4,0.00011917,2]
[352625498,1739205046125,-227.71,0.00011917,2]
[352625499,1739205046134,-500.0,0.00011917,2]
[352625501,1739205046144,-213.54,0.00011917,2]
[352625503,1739205046153,-500.0,0.00011917,2]
[352625504,1739205046163,-500.0,0.00011917,2]
[352625506,1739205046172,-1538.23,0.00011917,2]
[352625507,1739205046181,-5570.95,0.00011917,2]
[352625509,1739205046191,-709.88,0.00011917,2]
[352625511,1739205046200,-500.0,0.00011917,2]
[352625512,1739205046209,-500.0,0.00011917,2]
[352625514,1739205046219,-500.0,0.00011917,2]
[352625515,1739205046228,-500.0,0.00011917,2]
[352625517,1739205046237,-1169.66,0.00011917,2]
[352625519,1739205046249,-500.0,0.00011917,2]
[352625520,1739205046258,-197.22,0.00011917,2]
[352625522,1739205046267,-1000.0,0.00011943,2]
[352625524,1739205046277,-1000.0,0.00011961,2]
[352625525,1739205046286,-300.0,0.0001204,2]
[352625527,1739205046296,-500.0,0.00012054,2]
[352625529,1739205046306,-690.16,0.00012054,2]
[352625530,1739205046315,-611.4,0.00012054,2]
[352625532,1739205046325,-500.0,0.00012054,2]
[352625534,1739205046334,-703.0,0.00012054,2]
[352625535,1739205046345,-562.94,0.00012054,2]
[352625537,1739205046354,-699.19,0.00012054,2]
[352625538,1739205046364,-500.0,0.00012054,2]
[352625540,1739205046374,-500.0,0.00012054,2]
[352625542,1739205046383,-462.88,0.00012054,2]
[352625543,1739205046393,-599.71,0.00012054,2]
[352625545,1739205046403,-12526.65,0.00012054,2]
[352625547,1739205046413,-500.0,0.00012054,2]
[352625548,1739205046422,-1489.16,0.00012054,2]
[352625550,1739205046432,-239.17,0.00012054,2]
[352625552,1739205046442,-531.04,0.00012054,2]
[352625553,1739205046451,-673.17,0.00012054,2]
[352625555,1739205046461,-683.54,0.00012054,2]
[352625557,1739205046470,-500.0,0.00012054,2]
[352625558,1739205046480,-5371.01,0.00012054,2]
[352625560,1739205046489,-1641.74,0.00012054,2]
[352625562,1739205046500,-500.0,0.00012054,2]
[352625563,1739205046509,-500.0,0.00012054,2]
[352625565,1739205046519,-500.0,0.00012054,2]
[352625567,1739205046529,-506.41,0.00012054,2]
[352625568,1739205046538,-513.58,0.00012054,2]
[352625570,1739205046547,-618.63,0.00012054,2]
[352625572,1739205046557,-897.18,0.00012054,2]
[352625573,1739205046566,-1311.74,0.00012054,2]
[352625575,1739205046575,-2733.22,0.00012054,2]
[352625577,1739205046585,-634.11,0.00012054,2]
[352625579,1739205046594,-1409.56,0.00012054,2]
[352625581,1739205046603,-540.4,0.00012054,2]
[352625582,1739205046613,-500.0,0.00012054,2]
[352625583,1739205046622,-404.34288852,0.00012054,2]
[352625584,1739205046632,-500.0,0.00012054,2]
[352625585,1739205046641,-1538.23,0.00012054,2]
[352625586,1739205046650,-5570.95,0.00012054,2]
[352625587,1739205046660,-709.88,0.00012054,2]
[352625588,1739205046669,-500.0,0.00012054,2]
[352625589,1739205046678,-500.0,0.00012054,2]
[352625590,1739205046689,-500.0,0.00012054,2]
[352625591,1739205046700,-500.0,0.00012054,2]
[352625592,1739205046714,-1169.66,0.00012054,2]
[352625593,1739205046724,-500.0,0.00012054,2]
[352625594,1739205046733,-151.0,0.000121,2]
[352625595,1739205046746,-500.0,0.00012191,2]
[352625596,1739205046755,-690.16,0.00012191,2]
[352625597,1739205046765,-611.4,0.00012191,2]
[352625598,1739205046775,-500.0,0.00012191,2]
[352625600,1739205046784,-703.0,0.00012191,2]
[352625601,1739205046793,-562.94,0.00012191,2]
[352625603,1739205046813,-699.19,0.00012191,2]
[352625605,1739205046824,-419.57,0.00012191,2]
[352625607,1739205046834,-500.0,0.00012191,2]
[352625609,1739205046843,-599.71,0.00012191,2]
[352625612,1739205046854,-12526.65,0.00012191,2]
[352625614,1739205046864,-500.0,0.00012191,2]
[352625616,1739205046874,-1489.16,0.00012191,2]
[352625618,1739205046884,-531.04,0.00012191,2]
[352625620,1739205046894,-673.17,0.00012191,2]
[352625622,1739205046904,-683.54,0.00012191,2]
[352625624,1739205046914,-500.0,0.00012191,2]
[352625626,1739205046924,-5371.01,0.00012191,2]
[352625628,1739205046935,-1641.74,0.00012191,2]
[352625630,1739205046945,-500.0,0.00012191,2]
[352625632,1739205046955,-500.0,0.00012191,2]
[352625634,1739205046964,-500.0,0.00012191,2]
[352625636,1739205046974,-506.41,0.00012191,2]
[352625638,1739205046984,-618.63,0.00012191,2]
[352625640,1739205046994,-897.18,0.00012191,2]
[352625642,1739205047004,-1311.74,0.00012191,2]
[352625644,1739205047014,-2733.22,0.00012191,2]
[352625646,1739205047025,-634.11,0.00012191,2]
[352625649,1739205047035,-1409.56,0.00012191,2]
[352625651,1739205047045,-540.4,0.00012191,2]
[352625653,1739205047055,-500.0,0.00012191,2]
[352625655,1739205047065,-524.2,0.00012191,2]
[352625657,1739205047075,-1538.23,0.00012191,2]
[352625659,1739205047084,-5570.95,0.00012191,2]
[352625661,1739205047094,-709.88,0.00012191,2]
[352625663,1739205047103,-500.0,0.00012191,2]
[352625665,1739205047113,-500.0,0.00012191,2]
[352625667,1739205047124,-500.0,0.00012191,2]
[352625669,1739205047134,-500.0,0.00012191,2]
[352625671,1739205047143,-1169.66,0.00012191,2]
[352625673,1739205047152,-474.86,0.00012191,2]
[352625675,1739205047164,-151.0,0.000123,2]
[352625677,1739205047174,-500.0,0.00012328,2]
[352625679,1739205047184,-690.16,0.00012328,2]
[352625681,1739205047193,-611.4,0.00012328,2]
[352625683,1739205047202,-500.0,0.00012328,2]
[352625685,1739205047212,-703.0,0.00012328,2]
[352625687,1739205047222,-562.94,0.00012328,2]
[352625689,1739205047231,-699.19,0.00012328,2]
[352625691,1739205047241,-33.26068094,0.00012328,2]
[352625695,1739205047268,-466.73931906,0.00012328,2]
[352625697,1739205047280,-599.71,0.00012328,2]
[352625699,1739205047291,-12526.65,0.00012328,2]
[352625701,1739205047301,-500.0,0.00012328,2]
[352625703,1739205047310,-1489.16,0.00012328,2]
[352625705,1739205047320,-531.04,0.00012328,2]
[352625708,1739205047331,-673.17,0.00012328,2]
[352625710,1739205047342,-683.54,0.00012328,2]
[352625712,1739205047351,-500.0,0.00012328,2]
[352625714,1739205047362,-5371.01,0.00012328,2]